[Event "Titled Tuesday Blitz May 31 Early 2022"]
[White "Atakhan, Abtin"]
[Black "Yuan, Qingyu"]
[WhiteFideId "22502203"]
[BlackFideId "8609772"]
[WhiteElo "2094"]
[BlackElo "2359"]
[Result "1-0"]
[Round "08"]
[TimeControl "180+1"]
[Date "2022.05.31"]
[WhiteClock "0:00:17"]
[BlackClock "0:00:04"]

1. Nf3 {[%clk 0:03:00]}  d5 {[%clk 0:03:00]} 2. e3 {[%clk 0:02:59]}  Nf6 {[%clk 0:03:00]} 3. c4 {[%clk 0:02:59]}  e6 {[%clk 0:02:58]} 4. Nc3 {[%clk 0:03:00]}  Nbd7 {[%clk 0:02:59]} 5. b3 {[%clk 0:02:57]}  Bd6 {[%clk 0:02:59]} 6. Bb2 {[%clk 0:02:57]}  O-O {[%clk 0:02:56]} 7. Qc2 {[%clk 0:02:57]}  a6 {[%clk 0:02:56]} 8. Be2 {[%clk 0:02:56]}  Re8 {[%clk 0:02:56]} 9. O-O {[%clk 0:02:53]}  b6 {[%clk 0:02:56]} 10. d4 {[%clk 0:02:49]}  Bb7 {[%clk 0:02:55]} 11. Rac1 {[%clk 0:02:49]}  Rc8 {[%clk 0:02:35]} 12. Bd3 {[%clk 0:02:48]}  dxc4 {[%clk 0:02:27]} 13. Bxc4 {[%clk 0:02:45]}  Bxf3 {[%clk 0:02:25]} 14. gxf3 {[%clk 0:02:44]}  Nd5 {[%clk 0:02:13]} 15. f4 {[%clk 0:02:35]}  Nxc3 {[%clk 0:02:06]} 16. Bxc3 {[%clk 0:02:31]}  b5 {[%clk 0:02:06]} 17. Bd3 {[%clk 0:02:27]}  Qh4 {[%clk 0:02:04]} 18. Qe2 {[%clk 0:02:19]}  g5 {[%clk 0:01:53]} 19. f3 {[%clk 0:02:10]}  gxf4 {[%clk 0:01:49]} 20. e4 {[%clk 0:02:11]}  e5 {[%clk 0:01:47]} 21. Kh1 {[%clk 0:02:07]}  Kh8 {[%clk 0:01:44]} 22. a4 {[%clk 0:02:07]}  b4 {[%clk 0:01:28]} 23. Be1 {[%clk 0:02:05]}  Qf6 {[%clk 0:01:21]} 24. Bxa6 {[%clk 0:02:04]}  Rcd8 {[%clk 0:01:15]} 25. d5 {[%clk 0:01:45]}  Rg8 {[%clk 0:01:09]} 26. Bb5 {[%clk 0:01:36]}  Nc5 {[%clk 0:01:02]} 27. Bc4 {[%clk 0:01:26]}  Nd7 {[%clk 0:00:58]} 28. Bf2 {[%clk 0:01:21]}  Rg6 {[%clk 0:00:30]} 29. Bb5 {[%clk 0:01:14]}  Nf8 {[%clk 0:00:19]} 30. a5 {[%clk 0:01:05]}  h6 {[%clk 0:00:14]} 31. a6 {[%clk 0:01:03]}  Nh7 {[%clk 0:00:14]} 32. a7 {[%clk 0:01:00]}  Ng5 {[%clk 0:00:12]} 33. Bd7 {[%clk 0:00:47]}  Rgg8 {[%clk 0:00:12]} 34. Bf5 {[%clk 0:00:47]}  Ra8 {[%clk 0:00:10]} 35. Ra1 {[%clk 0:00:39]}  Qe7 {[%clk 0:00:10]} 36. Rg1 {[%clk 0:00:39]}  Bc5 {[%clk 0:00:10]} 37. Qa6 {[%clk 0:00:36]}  Kg7 {[%clk 0:00:02]} 38. Bxc5 {[%clk 0:00:33]}  Qxc5 {[%clk 0:00:02]} 39. Rg2 {[%clk 0:00:27]}  Rh8 {[%clk 0:00:02]} 40. h4 {[%clk 0:00:25]}  f6 {[%clk 0:00:03]} 41. Qc6 {[%clk 0:00:19]}  Qxc6 {[%clk 0:00:02]} 42. dxc6 {[%clk 0:00:20]}  Kf7 {[%clk 0:00:03]} 43. hxg5 {[%clk 0:00:20]}  hxg5+ {[%clk 0:00:03]} 44. Rh2 {[%clk 0:00:21]}  Rxh2+ {[%clk 0:00:04]} 45. Kxh2 {[%clk 0:00:21]}  Ke7 {[%clk 0:00:04]} 46. Bc8 {[%clk 0:00:21]}  Rxc8 {[%clk 0:00:04]} 47. a8=Q {[%clk 0:00:21]}  Rxa8 {[%clk 0:00:05]} 48. Rxa8 {[%clk 0:00:21]}  Kd6 {[%clk 0:00:06]} 49. Rf8 {[%clk 0:00:21]}  Kxc6 {[%clk 0:00:06]} 50. Rxf6+ {[%clk 0:00:21]}  Kc5 {[%clk 0:00:07]} 51. Rf5 {[%clk 0:00:22]}  Kd4 {[%clk 0:00:07]} 52. Rxg5 {[%clk 0:00:22]}  c5 {[%clk 0:00:07]} 53. Rg8 {[%clk 0:00:18]}  c4 {[%clk 0:00:03]} 54. bxc4 {[%clk 0:00:17]}  Kxc4 {[%clk 0:00:03]} 55. Rb8 {[%clk 0:00:16]}  b3 {[%clk 0:00:02]} 56. Kh3 {[%clk 0:00:17]}  Kc3 {[%clk 0:00:03]} 57. Kg4 {[%clk 0:00:17]}  b2 {[%clk 0:00:03]} 58. Kf5 {[%clk 0:00:18]}  Kc2 {[%clk 0:00:03]} 59. Kxe5 {[%clk 0:00:17]}  Kd3 {[%clk 0:00:03]} 60. Kxf4 {[%clk 0:00:17]}  b1=Q {[%clk 0:00:04]} 61. Rxb1 {[%clk 0:00:17]} 1-0


[Site "https://www.chess.com"]

[Event "Titled Tuesday Blitz May 31 Early 2022"]
[White "Cherniaiev, Tykhon"]
[Black "Yaniuk, Volodymyr"]
[WhiteFideId "14182360"]
[BlackFideId "14133083"]
[WhiteElo "2289"]
[BlackElo "2207"]
[Result "1-0"]
[Round "08"]
[TimeControl "180+1"]
[Date "2022.05.31"]
[WhiteClock "0:00:09"]
[BlackClock "0:00:27"]

1. Nf3 {[%clk 0:03:00]}  d5 {[%clk 0:02:59]} 2. c4 {[%clk 0:02:57]}  e6 {[%clk 0:02:59]} 3. d4 {[%clk 0:02:54]}  Nf6 {[%clk 0:02:52]} 4. Nc3 {[%clk 0:02:53]}  Bb4 {[%clk 0:02:51]} 5. cxd5 {[%clk 0:02:53]}  exd5 {[%clk 0:02:52]} 6. Bg5 {[%clk 0:02:53]}  h6 {[%clk 0:02:51]} 7. Bh4 {[%clk 0:02:53]}  g5 {[%clk 0:02:50]} 8. Bg3 {[%clk 0:02:53]}  Ne4 {[%clk 0:02:50]} 9. Qc2 {[%clk 0:02:47]}  h5 {[%clk 0:02:49]} 10. h4 {[%clk 0:02:44]}  Nxg3 {[%clk 0:02:48]} 11. fxg3 {[%clk 0:02:43]}  g4 {[%clk 0:02:44]} 12. Ne5 {[%clk 0:02:43]}  Nc6 {[%clk 0:02:37]} 13. Qa4 {[%clk 0:02:32]}  Bd7 {[%clk 0:02:28]} 14. Nxd7 {[%clk 0:02:18]}  Qxd7 {[%clk 0:02:24]} 15. O-O-O {[%clk 0:02:11]}  O-O {[%clk 0:02:21]} 16. e3 {[%clk 0:02:09]}  Rfe8 {[%clk 0:02:15]} 17. Re1 {[%clk 0:01:53]}  a6 {[%clk 0:02:10]} 18. Bd3 {[%clk 0:01:51]}  Bxc3 {[%clk 0:02:03]} 19. bxc3 {[%clk 0:01:51]}  b5 {[%clk 0:02:03]} 20. Qc2 {[%clk 0:01:48]}  Qd6 {[%clk 0:02:01]} 21. e4 {[%clk 0:01:40]}  Ne7 {[%clk 0:01:48]} 22. e5 {[%clk 0:01:38]}  Qa3+ {[%clk 0:01:47]} 23. Qb2 {[%clk 0:01:20]}  Qxb2+ {[%clk 0:01:47]} 24. Kxb2 {[%clk 0:01:21]}  c5 {[%clk 0:01:47]} 25. Rhf1 {[%clk 0:01:19]}  Rab8 {[%clk 0:01:45]} 26. Rf6 {[%clk 0:01:17]}  b4 {[%clk 0:01:44]} 27. e6 {[%clk 0:00:51]}  bxc3+ {[%clk 0:01:39]} 28. Kxc3 {[%clk 0:00:51]}  fxe6 {[%clk 0:01:30]} 29. dxc5 {[%clk 0:00:38]}  Nc6 {[%clk 0:00:55]} 30. Rfxe6 {[%clk 0:00:25]}  d4+ {[%clk 0:00:55]} 31. Kc4 {[%clk 0:00:17]}  Na5+ {[%clk 0:00:47]} 32. Kxd4 {[%clk 0:00:16]}  Red8+ {[%clk 0:00:43]} 33. Kc3 {[%clk 0:00:15]}  Rbc8 {[%clk 0:00:42]} 34. R1e5 {[%clk 0:00:14]}  Nb7 {[%clk 0:00:35]} 35. Bc4 {[%clk 0:00:12]}  Kf8 {[%clk 0:00:26]} 36. Rf5+ {[%clk 0:00:12]}  Kg7 {[%clk 0:00:26]} 37. Re7+ {[%clk 0:00:12]}  Kg6 {[%clk 0:00:26]} 38. Rg5+ {[%clk 0:00:12]}  Kh6 {[%clk 0:00:26]} 39. Rxb7 {[%clk 0:00:09]}  Rxc5 {[%clk 0:00:26]} 40. Rxc5 {[%clk 0:00:09]}  Rd6 {[%clk 0:00:27]} 1-0


[Site "https://www.chess.com"]

[Event "Titled Tuesday Blitz May 31 Early 2022"]
[White "Demchenko, Anton"]
[Black "Sargissyan, Sargis"]
[WhiteFideId "4160258"]
[BlackFideId "13303210"]
[WhiteElo "2539"]
[BlackElo "2174"]
[Result "1-0"]
[Round "08"]
[TimeControl "180+1"]
[Date "2022.05.31"]
[WhiteClock "0:00:35"]
[BlackClock "0:00:02"]

1. e4 {[%clk 0:03:00]}  e5 {[%clk 0:02:59]} 2. Nf3 {[%clk 0:03:00]}  Nc6 {[%clk 0:03:00]} 3. Bb5 {[%clk 0:03:00]}  a6 {[%clk 0:03:00]} 4. Ba4 {[%clk 0:03:00]}  Nf6 {[%clk 0:03:00]} 5. d3 {[%clk 0:03:00]}  d6 {[%clk 0:02:52]} 6. c3 {[%clk 0:02:56]}  b5 {[%clk 0:02:50]} 7. Bb3 {[%clk 0:02:52]}  Be7 {[%clk 0:02:40]} 8. Nbd2 {[%clk 0:02:48]}  O-O {[%clk 0:02:39]} 9. Nf1 {[%clk 0:02:49]}  d5 {[%clk 0:02:29]} 10. Qe2 {[%clk 0:02:48]}  dxe4 {[%clk 0:01:51]} 11. dxe4 {[%clk 0:02:47]}  Na5 {[%clk 0:01:52]} 12. Bc2 {[%clk 0:02:45]}  Be6 {[%clk 0:01:39]} 13. Ne3 {[%clk 0:02:42]}  Nc4 {[%clk 0:01:32]} 14. b3 {[%clk 0:02:34]}  Nxe3 {[%clk 0:01:30]} 15. Bxe3 {[%clk 0:02:35]}  Nd7 {[%clk 0:01:23]} 16. O-O {[%clk 0:02:30]}  f6 {[%clk 0:01:20]} 17. Rfd1 {[%clk 0:02:21]}  Qc8 {[%clk 0:01:19]} 18. Nh4 {[%clk 0:02:16]}  Bc5 {[%clk 0:01:11]} 19. Nf5 {[%clk 0:02:05]}  Bxf5 {[%clk 0:00:47]} 20. exf5 {[%clk 0:02:06]}  Bxe3 {[%clk 0:00:45]} 21. Qxe3 {[%clk 0:02:07]}  Rd8 {[%clk 0:00:38]} 22. Be4 {[%clk 0:02:07]}  Rb8 {[%clk 0:00:38]} 23. Bd5+ {[%clk 0:02:07]}  Kh8 {[%clk 0:00:38]} 24. Be6 {[%clk 0:02:08]}  Rb6 {[%clk 0:00:36]} 25. Rd3 {[%clk 0:01:57]}  Rd6 {[%clk 0:00:34]} 26. Rad1 {[%clk 0:01:57]}  Qb8 {[%clk 0:00:34]} 27. Rxd6 {[%clk 0:01:43]}  cxd6 {[%clk 0:00:34]} 28. h4 {[%clk 0:01:32]}  Nc5 {[%clk 0:00:34]} 29. Bd5 {[%clk 0:01:32]}  Qc7 {[%clk 0:00:32]} 30. h5 {[%clk 0:01:28]}  h6 {[%clk 0:00:32]} 31. c4 {[%clk 0:01:24]}  bxc4 {[%clk 0:00:21]} 32. Bxc4 {[%clk 0:01:18]}  a5 {[%clk 0:00:20]} 33. Qf3 {[%clk 0:01:10]}  Qc8 {[%clk 0:00:18]} 34. g4 {[%clk 0:00:59]}  Qc7 {[%clk 0:00:17]} 35. Qd5 {[%clk 0:00:57]}  Qb7 {[%clk 0:00:15]} 36. Qxc5 {[%clk 0:00:45]}  Qf3 {[%clk 0:00:07]} 37. Rxd6 {[%clk 0:00:38]}  Qxg4+ {[%clk 0:00:06]} 38. Kf1 {[%clk 0:00:39]}  Rxd6 {[%clk 0:00:03]} 39. Qxd6 {[%clk 0:00:39]}  Qh3+ {[%clk 0:00:03]} 40. Ke1 {[%clk 0:00:36]}  Qh1+ {[%clk 0:00:02]} 41. Kd2 {[%clk 0:00:35]} 1-0


[Site "https://www.chess.com"]

[Event "Titled Tuesday Blitz May 31 Early 2022"]
[White "Domingo Nunez, Ruben"]
[Black "Gracia Alvarez, Gerardo Antonio"]
[WhiteFideId "22245570"]
[BlackFideId "5109124"]
[WhiteElo "2376"]
[BlackElo "2139"]
[Result "0-1"]
[Round "08"]
[TimeControl "180+1"]
[Date "2022.06.01"]
[WhiteClock "0:00:04"]
[BlackClock "0:00:04"]

1. b3 {[%clk 0:03:00]}  e5 {[%clk 0:02:59]} 2. Bb2 {[%clk 0:03:00]}  Nc6 {[%clk 0:02:59]} 3. g3 {[%clk 0:03:00]}  d5 {[%clk 0:02:54]} 4. Bg2 {[%clk 0:03:00]}  Nf6 {[%clk 0:02:55]} 5. c4 {[%clk 0:02:56]}  d4 {[%clk 0:02:45]} 6. d3 {[%clk 0:02:56]}  Bb4+ {[%clk 0:02:41]} 7. Nd2 {[%clk 0:02:56]}  a5 {[%clk 0:02:42]} 8. a3 {[%clk 0:02:56]}  Bxd2+ {[%clk 0:02:29]} 9. Qxd2 {[%clk 0:02:55]}  O-O {[%clk 0:02:29]} 10. e3 {[%clk 0:02:41]}  Nd7 {[%clk 0:02:19]} 11. Nf3 {[%clk 0:02:34]}  Nc5 {[%clk 0:02:09]} 12. Rd1 {[%clk 0:02:25]}  Nxb3 {[%clk 0:02:06]} 13. Qc2 {[%clk 0:02:25]}  a4 {[%clk 0:02:06]} 14. O-O {[%clk 0:02:24]}  Re8 {[%clk 0:02:02]} 15. Rfe1 {[%clk 0:02:22]}  h6 {[%clk 0:01:55]} 16. Nd2 {[%clk 0:01:53]}  Nxd2 {[%clk 0:01:42]} 17. Qxd2 {[%clk 0:01:54]}  Bg4 {[%clk 0:01:40]} 18. Rb1 {[%clk 0:01:54]}  Qd7 {[%clk 0:01:35]} 19. Bc1 {[%clk 0:01:54]}  b6 {[%clk 0:01:18]} 20. Rb5 {[%clk 0:01:52]}  Rad8 {[%clk 0:00:58]} 21. Rd5 {[%clk 0:01:44]}  Qc8 {[%clk 0:00:58]} 22. Rxd8 {[%clk 0:01:42]}  Nxd8 {[%clk 0:00:59]} 23. exd4 {[%clk 0:01:42]}  Ne6 {[%clk 0:00:55]} 24. h3 {[%clk 0:01:16]}  Bf5 {[%clk 0:00:54]} 25. g4 {[%clk 0:01:07]}  Bg6 {[%clk 0:00:51]} 26. dxe5 {[%clk 0:00:58]}  Rd8 {[%clk 0:00:51]} 27. Re3 {[%clk 0:00:52]}  Nc5 {[%clk 0:00:47]} 28. d4 {[%clk 0:00:44]}  Nb3 {[%clk 0:00:47]} 29. Rxb3 {[%clk 0:00:44]}  axb3 {[%clk 0:00:47]} 30. Bb2 {[%clk 0:00:42]}  Bc2 {[%clk 0:00:37]} 31. d5 {[%clk 0:00:32]}  Re8 {[%clk 0:00:37]} 32. Qd4 {[%clk 0:00:31]}  Qd8 {[%clk 0:00:32]} 33. d6 {[%clk 0:00:17]}  cxd6 {[%clk 0:00:26]} 34. exd6 {[%clk 0:00:18]}  Qf6 {[%clk 0:00:18]} 35. Qxf6 {[%clk 0:00:18]}  gxf6 {[%clk 0:00:18]} 36. Bxf6 {[%clk 0:00:19]}  Rd8 {[%clk 0:00:18]} 37. Bxd8 {[%clk 0:00:08]}  b2 {[%clk 0:00:17]} 38. Bf6 {[%clk 0:00:03]}  b1=Q+ {[%clk 0:00:17]} 39. Kh2 {[%clk 0:00:04]}  Qd1 {[%clk 0:00:15]} 40. Be5 {[%clk 0:00:04]}  Bb3 {[%clk 0:00:12]} 41. Bd5 {[%clk 0:00:04]}  Ba4 {[%clk 0:00:10]} 42. Kg3 {[%clk 0:00:03]}  Bd7 {[%clk 0:00:10]} 43. f3 {[%clk 0:00:02]}  Be6 {[%clk 0:00:10]} 44. Bf4 {[%clk 0:00:02]}  Bxd5 {[%clk 0:00:08]} 45. cxd5 {[%clk 0:00:03]}  Qxd5 {[%clk 0:00:09]} 46. h4 {[%clk 0:00:03]}  h5 {[%clk 0:00:06]} 47. gxh5 {[%clk 0:00:03]}  Qxh5 {[%clk 0:00:06]} 48. Bg5 {[%clk 0:00:04]}  Qg6 {[%clk 0:00:05]} 49. f4 {[%clk 0:00:01]}  Qxd6 {[%clk 0:00:05]} 50. Kg4 {[%clk 0:00:02]}  Qxa3 {[%clk 0:00:05]} 51. Kf5 {[%clk 0:00:02]}  b5 {[%clk 0:00:05]} 52. Bf6 {[%clk 0:00:02]}  b4 {[%clk 0:00:05]} 53. h5 {[%clk 0:00:03]}  b3 {[%clk 0:00:05]} 54. Be7 {[%clk 0:00:04]}  Qxe7 {[%clk 0:00:04]} 0-1


[Site "https://www.chess.com"]

[Event "Titled Tuesday Blitz May 31 Early 2022"]
[White "Dubov, Daniil"]
[Black "Pranav, V"]
[WhiteFideId "24126055"]
[BlackFideId "25060783"]
[WhiteElo "2791"]
[BlackElo "2349"]
[Result "1-0"]
[Round "08"]
[TimeControl "180+1"]
[Date "2022.05.31"]
[WhiteClock "0:00:37"]
[BlackClock "0:00:03"]

1. d4 {[%clk 0:03:00]}  Nf6 {[%clk 0:02:59]} 2. Nf3 {[%clk 0:03:01]}  g6 {[%clk 0:02:58]} 3. c4 {[%clk 0:03:01]}  Bg7 {[%clk 0:02:59]} 4. Nc3 {[%clk 0:03:01]}  d6 {[%clk 0:02:59]} 5. Bg5 {[%clk 0:03:01]}  O-O {[%clk 0:03:00]} 6. e3 {[%clk 0:03:01]}  Nc6 {[%clk 0:03:00]} 7. Be2 {[%clk 0:03:00]}  h6 {[%clk 0:02:59]} 8. Bh4 {[%clk 0:03:00]}  Re8 {[%clk 0:02:55]} 9. O-O {[%clk 0:02:52]}  e5 {[%clk 0:02:54]} 10. dxe5 {[%clk 0:02:52]}  Nxe5 {[%clk 0:02:54]} 11. Nxe5 {[%clk 0:02:49]}  Rxe5 {[%clk 0:02:55]} 12. Bf3 {[%clk 0:02:41]}  Re8 {[%clk 0:02:49]} 13. Qb3 {[%clk 0:02:27]}  g5 {[%clk 0:02:40]} 14. Bg3 {[%clk 0:02:26]}  h5 {[%clk 0:02:41]} 15. h4 {[%clk 0:02:20]}  g4 {[%clk 0:02:19]} 16. Be2 {[%clk 0:02:19]}  Nd7 {[%clk 0:02:17]} 17. Rad1 {[%clk 0:02:13]}  Nc5 {[%clk 0:02:15]} 18. Qc2 {[%clk 0:02:12]}  Be6 {[%clk 0:01:53]} 19. b4 {[%clk 0:01:54]}  Nd7 {[%clk 0:01:48]} 20. c5 {[%clk 0:01:51]}  dxc5 {[%clk 0:01:29]} 21. Nb5 {[%clk 0:01:46]}  Rc8 {[%clk 0:01:25]} 22. bxc5 {[%clk 0:01:41]}  Qe7 {[%clk 0:01:10]} 23. c6 {[%clk 0:01:36]}  bxc6 {[%clk 0:01:04]} 24. Nxc7 {[%clk 0:01:36]}  Rxc7 {[%clk 0:00:43]} 25. Bxc7 {[%clk 0:01:34]}  Ne5 {[%clk 0:00:43]} 26. Bxe5 {[%clk 0:01:23]}  Bxe5 {[%clk 0:00:44]} 27. g3 {[%clk 0:01:22]}  Kg7 {[%clk 0:00:39]} 28. Qxc6 {[%clk 0:01:05]}  Bxa2 {[%clk 0:00:38]} 29. Bc4 {[%clk 0:00:55]}  Bxc4 {[%clk 0:00:33]} 30. Qxc4 {[%clk 0:00:55]}  a5 {[%clk 0:00:32]} 31. Rd5 {[%clk 0:00:46]}  Qe6 {[%clk 0:00:31]} 32. Rfd1 {[%clk 0:00:44]}  Bf6 {[%clk 0:00:06]} 33. Qd3 {[%clk 0:00:38]}  a4 {[%clk 0:00:04]} 34. Rxh5 {[%clk 0:00:38]}  Rd8 {[%clk 0:00:01]} 35. Qh7+ {[%clk 0:00:36]}  Kf8 {[%clk 0:00:01]} 36. Rxd8+ {[%clk 0:00:36]}  Bxd8 {[%clk 0:00:02]} 37. Qh8+ {[%clk 0:00:36]}  Ke7 {[%clk 0:00:03]} 38. Re5 {[%clk 0:00:37]} 1-0


[Site "https://www.chess.com"]

[Event "Titled Tuesday Blitz May 31 Early 2022"]
[White "Flynn, Jacob"]
[Black "Jegorovas, Aleksandras"]
[WhiteFideId "2509393"]
[BlackFideId "12801950"]
[WhiteElo "1896"]
[BlackElo "2247"]
[Result "0-1"]
[Round "08"]
[TimeControl "180+1"]
[Date "2022.06.01"]
[WhiteClock "0:00:04"]
[BlackClock "0:00:34"]

1. d4 {[%clk 0:03:00]}  d5 {[%clk 0:02:56]} 2. c4 {[%clk 0:02:59]}  c6 {[%clk 0:02:52]} 3. Nf3 {[%clk 0:02:59]}  Nf6 {[%clk 0:02:50]} 4. Qc2 {[%clk 0:02:59]}  e6 {[%clk 0:02:47]} 5. g3 {[%clk 0:02:58]}  c5 {[%clk 0:02:46]} 6. dxc5 {[%clk 0:02:48]}  Bxc5 {[%clk 0:02:45]} 7. cxd5 {[%clk 0:02:42]}  Bb4+ {[%clk 0:02:44]} 8. Bd2 {[%clk 0:02:38]}  Bxd2+ {[%clk 0:02:43]} 9. Nbxd2 {[%clk 0:02:27]}  exd5 {[%clk 0:02:38]} 10. Bg2 {[%clk 0:02:27]}  O-O {[%clk 0:02:36]} 11. O-O {[%clk 0:02:27]}  Nc6 {[%clk 0:02:36]} 12. Nb3 {[%clk 0:02:26]}  Bg4 {[%clk 0:02:29]} 13. Nfd4 {[%clk 0:02:19]}  Nxd4 {[%clk 0:02:27]} 14. Nxd4 {[%clk 0:02:19]}  Qb6 {[%clk 0:02:25]} 15. Rfd1 {[%clk 0:01:56]}  Rac8 {[%clk 0:02:21]} 16. Qb3 {[%clk 0:01:44]}  Qxb3 {[%clk 0:02:17]} 17. axb3 {[%clk 0:01:43]}  a6 {[%clk 0:02:18]} 18. h3 {[%clk 0:01:41]}  Bd7 {[%clk 0:02:13]} 19. g4 {[%clk 0:01:32]}  h6 {[%clk 0:02:12]} 20. e3 {[%clk 0:01:32]}  Rc7 {[%clk 0:02:09]} 21. Bf1 {[%clk 0:01:31]}  Rfc8 {[%clk 0:02:09]} 22. Bd3 {[%clk 0:01:31]}  Kf8 {[%clk 0:01:59]} 23. f3 {[%clk 0:01:32]}  Ke7 {[%clk 0:01:57]} 24. Kf2 {[%clk 0:01:32]}  g6 {[%clk 0:01:53]} 25. b4 {[%clk 0:01:27]}  Ne8 {[%clk 0:01:52]} 26. Ra5 {[%clk 0:01:19]}  Nf6 {[%clk 0:01:22]} 27. Ke2 {[%clk 0:01:16]}  Rc1 {[%clk 0:01:19]} 28. Kd2 {[%clk 0:01:15]}  Rxd1+ {[%clk 0:01:19]} 29. Kxd1 {[%clk 0:01:16]}  Kd6 {[%clk 0:01:17]} 30. Kd2 {[%clk 0:01:08]}  Ng8 {[%clk 0:01:14]} 31. Bc2 {[%clk 0:01:01]}  Ne7 {[%clk 0:01:13]} 32. Bb3 {[%clk 0:01:01]}  Be6 {[%clk 0:01:13]} 33. f4 {[%clk 0:00:58]}  Nc6 {[%clk 0:00:48]} 34. Ra4 {[%clk 0:00:43]}  Nxd4 {[%clk 0:00:45]} 35. exd4 {[%clk 0:00:43]}  Bd7 {[%clk 0:00:46]} 36. Ra5 {[%clk 0:00:42]}  Bb5 {[%clk 0:00:46]} 37. Ra1 {[%clk 0:00:39]}  Re8 {[%clk 0:00:41]} 38. Re1 {[%clk 0:00:38]}  Rxe1 {[%clk 0:00:41]} 39. Kxe1 {[%clk 0:00:39]}  f6 {[%clk 0:00:41]} 40. h4 {[%clk 0:00:38]}  g5 {[%clk 0:00:41]} 41. hxg5 {[%clk 0:00:37]}  hxg5 {[%clk 0:00:40]} 42. fxg5 {[%clk 0:00:37]}  fxg5 {[%clk 0:00:40]} 43. Kf2 {[%clk 0:00:37]}  Bd7 {[%clk 0:00:40]} 44. Kf3 {[%clk 0:00:31]}  Be6 {[%clk 0:00:40]} 45. Ba4 {[%clk 0:00:30]}  Kc7 {[%clk 0:00:39]} 46. Be8 {[%clk 0:00:15]}  Kb6 {[%clk 0:00:39]} 47. Ke3 {[%clk 0:00:11]}  a5 {[%clk 0:00:39]} 48. bxa5+ {[%clk 0:00:11]}  Kxa5 {[%clk 0:00:39]} 49. Kd3 {[%clk 0:00:06]}  Bxg4 {[%clk 0:00:38]} 50. Bf7 {[%clk 0:00:06]}  Bf3 {[%clk 0:00:38]} 51. Ke3 {[%clk 0:00:07]}  g4 {[%clk 0:00:36]} 52. Bg6 {[%clk 0:00:05]}  Kb4 {[%clk 0:00:36]} 53. Bc2 {[%clk 0:00:04]}  Kc4 {[%clk 0:00:35]} 54. Bb1 {[%clk 0:00:04]}  Kb3 {[%clk 0:00:35]} 55. Bd3 {[%clk 0:00:04]}  Kxb2 {[%clk 0:00:34]} 0-1


[Site "https://www.chess.com"]

[Event "Titled Tuesday Blitz May 31 Early 2022"]
[White "Girsh, Daniel"]
[Black "Sadubayev, Airat"]
[WhiteFideId "30949190"]
[BlackFideId "13713264"]
[WhiteElo "2463"]
[BlackElo "2234"]
[Result "0-1"]
[Round "08"]
[TimeControl "180+1"]
[Date "2022.06.01"]
[WhiteClock "0:00:26"]
[BlackClock "0:00:09"]

1. d4 {[%clk 0:03:00]}  d5 {[%clk 0:02:56]} 2. c4 {[%clk 0:03:01]}  c6 {[%clk 0:02:55]} 3. Nf3 {[%clk 0:03:00]}  Nf6 {[%clk 0:02:55]} 4. Qc2 {[%clk 0:03:00]}  dxc4 {[%clk 0:02:54]} 5. Qxc4 {[%clk 0:03:00]}  Bg4 {[%clk 0:02:54]} 6. Ne5 {[%clk 0:02:58]}  Be6 {[%clk 0:02:53]} 7. Qd3 {[%clk 0:02:58]}  Nbd7 {[%clk 0:02:53]} 8. Bf4 {[%clk 0:02:57]}  Nd5 {[%clk 0:02:34]} 9. g3 {[%clk 0:02:55]}  Nxe5 {[%clk 0:02:19]} 10. Bxe5 {[%clk 0:02:53]}  f6 {[%clk 0:02:12]} 11. Bf4 {[%clk 0:02:52]}  Nxf4 {[%clk 0:02:11]} 12. gxf4 {[%clk 0:02:52]}  Qb6 {[%clk 0:02:04]} 13. Nc3 {[%clk 0:02:51]}  O-O-O {[%clk 0:02:03]} 14. e3 {[%clk 0:02:50]}  Qxb2 {[%clk 0:01:46]} 15. Rb1 {[%clk 0:02:51]}  Qa3 {[%clk 0:01:45]} 16. Bg2 {[%clk 0:02:48]}  g5 {[%clk 0:01:32]} 17. Rxb7 {[%clk 0:02:47]}  Bd5 {[%clk 0:00:48]} 18. Bxd5 {[%clk 0:02:42]}  Rxd5 {[%clk 0:00:46]} 19. Rb3 {[%clk 0:02:35]}  Qc1+ {[%clk 0:00:45]} 20. Ke2 {[%clk 0:02:35]}  Qxh1 {[%clk 0:00:43]} 21. Qa6+ {[%clk 0:02:34]}  Kd7 {[%clk 0:00:41]} 22. Qb7+ {[%clk 0:02:29]}  Kd6 {[%clk 0:00:40]} 23. Qb8+ {[%clk 0:02:23]}  Ke6 {[%clk 0:00:36]} 24. Qe8 {[%clk 0:02:16]}  Rd7 {[%clk 0:00:30]} 25. f5+ {[%clk 0:02:14]}  Kxf5 {[%clk 0:00:27]} 26. Qxd7+ {[%clk 0:02:14]}  Kg6 {[%clk 0:00:27]} 27. Rb8 {[%clk 0:02:10]}  Qxh2 {[%clk 0:00:24]} 28. Re8 {[%clk 0:01:57]}  h5 {[%clk 0:00:23]} 29. Qd8 {[%clk 0:01:39]}  Kf7 {[%clk 0:00:20]} 30. Ne4 {[%clk 0:01:22]}  Qh3 {[%clk 0:00:20]} 31. Ng3 {[%clk 0:01:01]}  Qg4+ {[%clk 0:00:19]} 32. Kd2 {[%clk 0:01:00]}  h4 {[%clk 0:00:19]} 33. Ne2 {[%clk 0:00:54]}  h3 {[%clk 0:00:19]} 34. Rxe7+ {[%clk 0:00:54]}  Bxe7 {[%clk 0:00:16]} 35. Qxh8 {[%clk 0:00:55]}  Qg2 {[%clk 0:00:14]} 36. Qh7+ {[%clk 0:00:51]}  Ke8 {[%clk 0:00:14]} 37. Ng3 {[%clk 0:00:47]}  Qxf2+ {[%clk 0:00:13]} 38. Ne2 {[%clk 0:00:47]}  h2 {[%clk 0:00:13]} 39. Kd3 {[%clk 0:00:43]}  Qg2 {[%clk 0:00:13]} 40. Qg6+ {[%clk 0:00:37]}  Kd8 {[%clk 0:00:12]} 41. Qg8+ {[%clk 0:00:34]}  Kd7 {[%clk 0:00:12]} 42. Qb8 {[%clk 0:00:29]}  h1=Q {[%clk 0:00:09]} 43. Qb7+ {[%clk 0:00:29]}  Ke8 {[%clk 0:00:09]} 44. Qc8+ {[%clk 0:00:29]}  Kf7 {[%clk 0:00:10]} 45. Nc3 {[%clk 0:00:30]}  Qhf1+ {[%clk 0:00:07]} 46. Ne2 {[%clk 0:00:28]}  Qgxe2+ {[%clk 0:00:07]} 47. Kc3 {[%clk 0:00:28]}  Qc4+ {[%clk 0:00:07]} 48. Kb2 {[%clk 0:00:28]}  Qfe2+ {[%clk 0:00:08]} 49. Kb1 {[%clk 0:00:26]}  Qcc2+ {[%clk 0:00:08]} 50. Ka1 {[%clk 0:00:26]}  Qc1# {[%clk 0:00:09]} 0-1


[Site "https://www.chess.com"]